bitfinex-derivatives/quotes_SOLF0:USTF0_20250924
["timestamp","ask_amount","ask_price","bid_price","bid_amount"]
[1758720727519,12.1799,212.19,212.03,179.5815]
[1758720728133,12.1799,212.19,212.03,117.8229]
[1758720728134,65.9571,212.18,212.03,117.8229]
[1758720728329,7.94,212.19,212.03,113.58]
[1758720728934,7.94,212.19,212.05,4.2425]
[1758720729434,73.8935,212.19,212.03,113.58]
[1758720729935,73.8935,212.19,212.04,4.2427]
[1758720729936,4.2404,212.16,212.04,4.2427]
[1758720730541,4.2409,212.14,212.02,1.00220864]
[1758720730834,73.8934,212.19,212.05,118.28]
[1758720731433,4.2406,212.15,212.05,118.28]
[1758720731634,73.8934,212.19,212.05,118.28]
[1758720731836,7.94,212.19,212.05,118.28]
[1758720732236,7.94,212.19,212.05,122.5224]
[1758720732237,4.2404,212.16,212.05,122.5224]
[1758720733139,4.2409,212.14,212.05,118.28]
[1758720733336,4.2409,212.14,212.06,118.22]
[1758720733929,7.94,212.22,212.06,118.22]
[1758720734641,65.9488,212.21,212.07,4.242]
[1758720734839,65.9488,212.21,212.06,118.22]
[1758720735045,4.24,212.18,212.06,122.4624]
[1758720735239,7.94,212.2,212.06,118.22]
[1758720735735,7.94,212.2,212.03,66.002]
[1758720735938,4.24,212.18,212.04,62.64]
[1758720736333,7.94,212.2,212.04,62.64]
[1758720736530,7.94,212.2,212.07,4.2421]
[1758720737441,7.94,212.2,212.04,4.2426]
[1758720737641,7.94,212.2,212.05,59.06]
[1758720738033,7.94,212.2,212.03,38.63385171]
[1758720738241,4.2404,212.16,212.06,4.2424]
[1758720738435,4.2404,212.16,212.02,1.00220864]
[1758720738436,7.94,212.17,212.02,1.00220864]
[1758720738644,7.94,212.15,212.02,1.00220864]
[1758720738838,7.94,212.15,212.03,58.74]
[1758720739343,4.241,212.13,212.03,58.74]
[1758720739740,7.94,212.15,212.03,58.74]
[1758720739938,73.9058,212.15,212.03,58.74]
[1758720740239,7.94,212.13,212.03,58.74]
[1758720740644,7.94,212.13,211.99,343.06]
[1758720740645,7.94,212.09,211.99,343.06]
[1758720740833,7.94,212.09,211.99,118.18]
[1758720741233,7.94,212.09,211.94,1.00628534]
[1758720741435,7.94,212.05,211.95,51.98]
[1758720742644,7.94,212.13,211.95,118.0067]
[1758720742844,7.94,212.13,211.97,66.0197]
[1758720743242,7.94,212.13,211.98,66.0179]
[1758720743439,7.94,212.13,212.0,66.0109]
[1758720744049,11.9697,212.2,212.05,65.9956]
[1758720744251,11.9697,212.2,212.06,118.28]
[1758720744449,7.73,212.2,212.07,65.99]
[1758720744648,4.2392,212.22,212.12,4.241]
[1758720744850,4.2392,212.22,212.13,118.34]
[1758720746447,7.73,212.24,212.05,37.35588833]
[1758720746653,7.73,212.2,212.06,118.3]
[1758720747956,4.2406,212.15,212.06,122.5423]
[1758720748155,4.2406,212.15,212.06,118.3]
[1758720748360,73.6898,212.17,212.03,1.00312785]
[1758720748657,73.6898,212.17,212.04,20.6]
[1758720748856,7.73,212.17,212.04,20.6]
[1758720749260,7.73,212.17,212.05,41.54]
[1758720749550,4.2411,212.13,212.05,41.54]
[1758720749760,65.9625,212.16,212.05,41.54]
[1758720750060,65.9467,212.21,212.05,41.54]
[1758720750257,65.9544,212.19,212.05,41.54]
[1758720750556,7.73,212.2,212.03,1.00312785]
[1758720750557,4.2417,212.1,212.03,1.00312785]
[1758720750759,65.9753,212.12,212.03,1.00312785]
[1758720751255,7.73,212.14,212.03,1.00312785]
[1758720751656,7.73,212.14,212.0,288.55422007]
[1758720751858,4.2418,212.09,212.0,292.79762007]
[1758720752659,4.2418,212.09,212.0,288.55422007]
[1758720753159,4.2421,212.08,212.01,118.42]
[1758720753752,65.9838,212.09,211.98,118.36]
[1758720755358,7.73,212.1,211.98,118.36]
[1758720755752,7.73,212.15,211.98,118.36]
[1758720755959,4.2414,212.12,211.98,118.36]
[1758720756361,7.73,212.15,211.98,118.36]
[1758720756552,65.9749,212.12,211.99,4.2437]
[1758720756756,7.73,212.11,212.0,70.34]
[1758720757563,7.73,212.09,211.94,5.39693061]
[1758720757857,7.73,212.09,211.99,118.38]
[1758720758050,73.7201,212.07,211.91,357.04970741]
[1758720758251,73.7201,212.07,211.96,118.4]
[1758720758450,4.2426,212.05,211.96,118.4]
[1758720758654,7.73,212.07,211.96,118.4]
[1758720759156,7.73,212.07,211.98,4.244]
[1758720759157,11.9722,212.07,211.98,4.244]
[1758720759351,7.73,212.12,211.96,184.4239]
[1758720759555,7.73,212.12,211.96,188.33124318]
[1758720759956,4.2418,212.09,211.99,4.2437]
[1758720760158,7.73,212.12,211.99,4.2437]
[1758720760357,7.73,212.1,211.96,118.4]
[1758720760864,4.2423,212.07,211.97,4.244]
[1758720761060,65.9842,212.09,211.94,3.90734318]
[1758720761260,4.2424,212.06,211.95,87.78]
[1758720761657,7.73,212.04,211.95,87.78]
[1758720761856,7.73,211.99,211.91,343.18]
[1758720764058,7.73,211.99,211.87,5.46834432]
[1758720764256,66.022,211.97,211.88,67.2]
[1758720764460,7.73,211.96,211.88,67.2]
[1758720765566,4.2442,211.98,211.88,67.2]
[1758720766370,7.73,212.0,211.9,4.2456]
[1758720766765,7.73,212.0,211.88,67.2]
[1758720768263,4.2438,211.99,211.89,4.2457]
[1758720768969,4.2441,211.98,211.88,67.2]
[1758720769169,73.7425,212.0,211.88,67.2]
[1758720769360,66.0125,212.0,211.89,118.46]
[1758720769560,7.73,211.99,211.89,118.46]
[1758720769968,4.2444,211.96,211.89,118.46]
[1758720770465,7.73,211.99,211.89,118.46]
[1758720770869,7.73,212.03,211.89,118.46]
[1758720771169,4.2435,212.01,211.92,4.2452]
[1758720772267,65.9713,212.14,211.9,66.0416]
[1758720772467,7.73,212.08,211.92,66.0367]
[1758720772773,7.73,212.08,211.93,66.0322]
[1758720773162,4.2423,212.07,211.97,4.2441]
[1758720773362,7.73,212.08,211.96,65.96]
[1758720775266,65.9881,212.08,211.96,65.96]
[1758720775471,7.28,212.08,211.96,65.96]
[1758720776273,7.28,212.06,211.89,5.39693061]
[1758720776468,7.28,212.06,211.9,75.46]
[1758720776971,7.28,212.06,211.91,66.0396]
[1758720777269,5.39693061,212.1,211.9,75.46]
[1758720777270,7.28,212.1,211.94,66.0302]
[1758720777457,7.28,212.1,211.96,66.024]
[1758720777662,7.28,212.1,212.01,4.2432]
[1758720777862,7.28,212.1,212.0,47.38]
[1758720778472,7.28,212.1,212.02,4.243]
[1758720779266,7.28,212.1,212.0,51.6235]
[1758720779469,4.2412,212.12,212.0,51.6235]
[1758720780075,4.2412,212.12,212.01,4.2432]
[1758720780469,7.36,212.12,212.0,47.38]
[1758720781375,4.2417,212.1,212.0,47.38]
[1758720782979,5.39693061,212.17,212.0,47.38]
[1758720783278,7.36,212.17,212.03,66.0006]
[1758720783469,192.09695488,212.22,212.07,65.9897]
[1758720783470,128.11532427,212.22,212.07,65.9897]
[1758720783666,128.11532427,212.22,212.08,90.02]
[1758720783870,128.11532427,212.22,212.12,4.241]
[1758720784773,128.11532427,212.22,212.06,5.39693061]
[1758720784973,128.11532427,212.22,212.07,73.96]
[1758720786270,7.36,212.22,212.09,65.9837]
[1758720786470,7.36,212.29,212.11,65.977]
[1758720787275,7.36,212.29,212.14,5.39693061]
[1758720787475,12.75693061,212.34,212.15,60.84]
[1758720787782,12.75693061,212.34,212.18,5.39693061]
[1758720787783,7.36,212.34,212.18,5.39693061]
[1758720787968,7.36,212.34,212.19,65.9524]
[1758720788372,7.36,212.34,212.2,4.2394]
[1758720788581,7.36,212.34,212.21,118.52]
[1758720788976,4.237,212.33,212.21,118.52]
[1758720789176,4.237,212.33,212.22,4.2392]
[1758720789378,7.36,212.34,212.21,118.52]
[1758720790377,7.36,212.34,212.22,5.39693061]
[1758720791178,7.36,212.42,212.25,65.9341]
[1758720791481,7.36,212.42,212.26,5.39693061]
[1758720791980,65.8847,212.41,212.27,69.14]
[1758720792182,4.2365,212.36,212.23,4.2389]
[1758720792382,4.2365,212.36,212.28,84.38]
[1758720792889,7.36,212.35,212.26,105.88]
[1758720793880,11.5959,212.39,212.26,105.88]
[1758720794278,7.36,212.39,212.27,65.9275]
[1758720794481,71.26103061,212.48,212.3,65.9181]
[1758720794482,7.36,212.46,212.3,65.9181]
[1758720794779,4.2347,212.45,212.29,5.39693061]
[1758720794984,4.2347,212.45,212.31,4.2373]
[1758720795186,7.36,212.46,212.31,4.2373]
[1758720795376,7.36,212.46,212.31,65.914]
[1758720795581,7.36,212.46,212.33,5.39693061]
[1758720795780,5.39693061,212.52,212.34,118.5]
[1758720795985,7.36,212.51,212.34,118.5]
[1758720796484,11.5935,212.51,212.34,118.5]
[1758720796883,4.2339,212.49,212.34,118.5]
[1758720797081,65.8572,212.5,212.34,118.5]
[1758720800288,4.2362,212.37,212.22,195.39031631]
[1758720800492,7.36,212.34,212.23,118.6]
[1758720800883,7.36,212.34,212.23,118.58]
[1758720801187,7.36,212.34,212.22,181.46719562]
[1758720801387,7.36,212.34,212.23,118.58]
[1758720801582,7.36,212.34,212.22,181.46719562]
[1758720801983,7.36,212.34,212.23,118.54]
[1758720802292,73.2792,212.3,212.14,5.39693061]
[1758720802484,7.36,212.28,212.1,5.39693061]
[1758720802680,4.2382,212.27,212.14,4.2406]
[1758720802885,7.36,212.33,212.17,65.9588]
[1758720803186,7.36,212.33,212.18,65.5]
[1758720803386,7.36,212.33,212.2,4.2395]
[1758720803586,7.36,212.33,212.18,65.5]
[1758720803788,73.7901,212.3,212.17,103.9]
[1758720803984,73.7901,212.3,212.17,118.56]
[1758720804191,7.87,212.26,212.14,4.2407]
[1758720804386,7.87,212.26,212.15,118.56]
[1758720805286,7.87,212.26,212.16,4.2403]
[1758720805487,7.87,212.33,212.18,65.9556]
[1758720806192,12.1071,212.33,212.2,4.2395]
[1758720806490,7.87,212.32,212.15,123.95693061]
[1758720806686,7.87,212.32,212.13,65.9704]
[1758720806687,7.87,212.28,212.16,118.58]
[1758720807691,4.2382,212.27,212.16,118.58]
[1758720807893,4.2382,212.27,212.14,4.2406]
[1758720808093,4.2382,212.27,212.15,28.8]
[1758720808791,7.87,212.28,212.16,4.2403]
[1758720809093,12.108,212.28,212.15,33.0404]
[1758720809290,7.87,212.28,212.15,28.8]
[1758720809686,4.2384,212.26,212.15,28.8]
[1758720810284,7.87,212.28,212.15,28.8]
[1758720810689,7.87,212.26,212.1,13.80073408]
[1758720810887,65.9409,212.23,212.07,5.39693061]
[1758720811094,65.9409,212.23,212.02,0.99430551]
[1758720811095,13.26693061,212.2,212.02,0.99430551]
[1758720811700,12.1106,212.16,212.02,0.99430551]
[1758720811896,7.87,212.15,212.03,118.6]
[1758720812095,12.1107,212.15,212.03,118.6]
[1758720812887,7.87,212.15,212.03,118.6]
[1758720813089,65.9726,212.13,211.93,5.39693061]
[1758720813394,65.9726,212.13,211.89,66.046]
[1758720813395,7.87,212.07,211.92,184.7962]
[1758720813596,7.87,212.07,211.97,4.2441]
[1758720814700,7.87,212.13,211.98,66.0174]
[1758720814896,7.87,212.13,211.99,66.0137]
[1758720815097,7.87,212.13,212.0,184.8116]
[1758720815297,7.87,212.13,212.04,4.2427]
[1758720815505,125.45092756,212.14,212.02,66.0052]
[1758720815801,125.45092756,212.14,212.03,66.0016]
[1758720816193,125.45092756,212.14,212.06,4.2424]
[1758720816901,125.45092756,212.14,212.0,184.8116]
[1758720817104,125.45092756,212.14,212.02,66.0052]
[1758720817304,7.87,212.18,212.04,65.9974]
[1758720817496,7.87,212.18,212.03,66.0004]
[1758720817802,7.87,212.18,212.02,66.0055]
[1758720818197,7.87,212.18,212.04,65.9991]
[1758720818390,8.67642477,212.23,212.08,65.9858]
[1758720818391,16.54642477,212.23,212.08,65.9858]
[1758720818595,7.87,212.23,212.09,118.8]
[1758720818899,7.87,212.23,212.12,4.2412]
[1758720819199,7.87,212.23,212.11,65.9771]
[1758720819396,343.16,212.33,212.1,65.9797]
[1758720819397,7.87,212.29,212.18,4.2398]
[1758720819594,7.87,212.29,212.18,118.84]
[1758720820599,7.87,212.29,212.15,4.2404]
[1758720820600,7.87,212.29,212.15,119.04]
[1758720821097,4.2382,212.27,212.15,119.04]
[1758720821796,4.2386,212.25,212.15,119.04]
[1758720822706,12.1086,212.25,212.15,119.04]
[1758720822897,65.9327,212.26,212.11,118.98]
[1758720823103,7.87,212.24,212.11,118.98]
[1758720823899,7.87,212.2,212.08,1.00770696]
[1758720824104,7.87,212.2,212.09,118.98]
[1758720824294,7.87,212.27,212.11,65.9774]
[1758720824494,4.2384,212.26,212.09,118.98]
[1758720824693,65.9292,212.27,212.09,118.98]
[1758720824901,7.87,212.24,212.09,118.98]
[1758720825794,7.87,212.24,212.1,65.9794]
[1758720826197,7.87,212.24,212.13,4.2409]
[1758720827099,7.87,212.24,212.1,4.2415]
[1758720827300,4.2391,212.23,212.1,4.2415]
[1758720827506,4.2391,212.23,212.11,50.24]
[1758720827701,7.87,212.24,212.11,50.24]
[1758720827902,4.2394,212.21,212.11,50.24]
[1758720828303,7.87,212.24,212.11,50.24]
[1758720828803,73.8089,212.24,212.12,73.16]
[1758720829002,73.8089,212.24,212.08,1.00770696]
[1758720829208,4.2412,212.13,212.0,4.84734318]
[1758720829406,73.8389,212.14,212.0,0.94]
[1758720829606,7.87,212.11,212.0,0.94]
[1758720830905,4.2422,212.08,212.0,0.94]
[1758720831101,7.87,212.11,211.99,343.14]
[1758720831308,7.87,212.11,211.99,462.28]
[1758720831704,4.2418,212.09,211.99,462.28]
[1758720832605,7.87,212.09,211.99,343.14]
[1758720832803,7.87,212.09,211.97,119.14]
[1758720833709,7.87,212.09,212.0,4.2436]
[1758720833902,7.87,212.09,211.97,119.14]
[1758720834302,4.242,212.08,211.97,123.3841]
[1758720834605,7.87,212.09,211.97,119.14]
[1758720835704,12.112,212.09,211.98,4.2438]
[1758720836608,4.2422,212.07,211.97,119.14]
[1758720838312,7.87,212.09,211.98,4.244]
[1758720838809,12.112,212.09,211.98,4.244]
[1758720839012,7.87,212.09,211.98,4.244]
[1758720839308,7.87,212.09,212.0,4.2434]
[1758720839502,4.241,212.13,211.98,66.0177]
[1758720840113,7.53,212.14,212.0,66.0114]
[1758720840300,7.53,212.14,211.97,119.14]
[1758720840503,4.242,212.08,211.93,8.67642477]
[1758720840706,7.53,212.1,211.95,66.0269]
[1758720841007,4.241,212.13,211.97,66.0211]
[1758720841512,7.53,212.16,212.05,4.2424]
[1758720841703,7.53,212.16,212.05,118.64]
[1758720842706,7.53,212.16,212.07,4.2422]
[1758720842907,7.53,212.16,212.05,184.6356]
[1758720843109,7.53,212.21,212.06,65.9928]
[1758720843302,4.2397,212.2,212.1,4.2414]
[1758720843503,7.53,212.21,212.08,65.9868]
[1758720843703,417.73962477,212.29,212.1,65.9804]
[1758720843704,7.53,212.26,212.1,65.9804]
[1758720843909,4.2394,212.21,212.06,1.00016024]
[1758720844112,7.53,212.26,212.09,65.9835]
[1758720844297,7.53,212.26,212.08,65.9868]
[1758720844298,7.53,212.26,212.1,65.9805]
[1758720844504,7.53,212.26,212.12,4.2412]
[1758720844704,65.9342,212.25,212.13,119.18]
[1758720844905,7.53,212.22,212.09,119.16]
[1758720845301,4.2401,212.18,212.09,119.16]
[1758720845503,7.53,212.22,212.09,119.16]
[1758720846411,7.53,212.22,212.09,185.1433]
[1758720846608,7.53,212.28,212.13,65.9711]
[1758720846910,7.53,212.28,212.15,65.9646]
[1758720847109,7.53,212.28,212.17,4.2401]
[1758720847512,7.53,212.28,212.11,8.67642477]
[1758720847708,7.53,212.28,212.12,119.22]
[1758720848105,73.4568,212.28,212.12,119.22]
[1758720849015,4.2386,212.25,212.14,4.2408]
[1758720849714,73.4568,212.28,212.07,74.66602477]
[1758720849715,7.53,212.23,212.07,74.66602477]
[1758720849912,7.53,212.23,212.08,119.14]
[1758720850317,4.2394,212.21,212.07,8.67642477]
[1758720850611,4.2394,212.21,212.08,119.12]
[1758720850818,7.53,212.23,212.13,4.241]
[1758720851010,7.53,212.23,212.08,185.1065]
[1758720851209,7.53,212.23,212.08,119.12]
[1758720851413,4.2387,212.25,212.08,185.1062]
[1758720851717,4.2387,212.25,212.08,119.12]
[1758720851914,4.2387,212.25,212.09,65.9823]
[1758720852113,4.2387,212.25,212.14,4.2408]
[1758720852311,8.67642477,212.29,212.05,3.90734318]
[1758720852312,7.53,212.23,212.05,3.90734318]
[1758720852518,7.53,212.23,212.05,119.06]
[1758720852714,7.53,212.23,212.08,65.9867]
[1758720852914,7.53,212.28,212.11,65.9773]
[1758720853120,7.53,212.28,212.14,65.9673]
[1758720853316,7.53,212.28,212.13,65.9713]
[1758720853317,7.53,212.33,212.18,65.954]
[1758720853620,7.53,212.33,212.16,12.58376795]
[1758720853820,7.53,212.33,212.18,65.9548]
[1758720854012,7.53,212.33,212.2,65.9489]
[1758720854211,0.82007777,212.38,212.2,65.9489]
[1758720854212,7.53,212.37,212.2,65.9489]
[1758720854409,4.2369,212.34,212.22,4.2391]
[1758720854608,7.53,212.33,212.23,98.26]
[1758720855117,7.53,212.33,212.21,120.24]
[1758720855118,73.4399,212.33,212.21,120.24]
[1758720855914,4.238,212.29,212.21,120.24]
[1758720857312,73.4399,212.33,212.21,120.2]
[1758720857313,4.2381,212.28,212.21,120.2]
[1758720857822,4.2381,212.28,212.17,343.18]
[1758720857823,7.53,212.28,212.17,343.18]
[1758720858023,7.53,212.28,212.18,120.1]
[1758720858419,11.768,212.28,212.19,4.2396]
[1758720858916,7.53,212.28,212.2,4.2394]
[1758720859115,4.2375,212.31,212.18,120.1]
[1758720859625,4.2375,212.31,212.22,4.239]
[1758720860020,11.767,212.33,212.19,65.9516]
[1758720860223,7.53,212.33,212.23,4.2388]
[1758720860423,7.53,212.33,212.18,120.1]
[1758720860722,7.53,212.33,212.17,409.1385]
[1758720860723,7.53,212.33,212.19,120.06]
[1758720861227,7.53,212.33,212.2,65.9486]
[1758720861428,7.53,212.37,212.21,65.9464]
[1758720861621,63.2,212.43,212.23,65.9388]
[1758720861622,7.53,212.43,212.23,65.9388]
[1758720861823,4.2356,212.4,212.29,4.2377]
[1758720862027,7.53,212.43,212.3,120.04]
[1758720862328,7.53,212.48,212.33,65.9088]
[1758720862526,7.53,212.48,212.32,14.0505192]
[1758720862726,7.53,212.48,212.33,4.2368]
[1758720862929,7.53,212.46,212.34,43.8]
[1758720863126,7.53,212.46,212.3,88.92736098]
[1758720863433,7.53,212.46,212.31,67.1]
[1758720863728,11.7644,212.46,212.34,4.2367]
[1758720863926,409.76799841,212.53,212.33,65.9089]
[1758720864123,7.81,212.52,212.34,65.9059]
[1758720864628,7.81,212.47,212.35,72.26]
[1758720864820,65.8726,212.45,212.28,37.73880836]
[1758720865024,4.2352,212.42,212.31,4.2374]
[1758720865220,7.81,212.44,212.31,4.2374]
[1758720865523,4.2358,212.39,212.32,120.12]
[1758720865727,65.8783,212.43,212.31,120.1]
[1758720865728,7.81,212.4,212.31,120.1]
[1758720866329,65.8909,212.39,212.24,4.2386]
[1758720866529,7.81,212.37,212.27,120.12]
[1758720866731,4.2365,212.36,212.27,120.12]
[1758720867724,4.2368,212.34,212.27,120.12]
[1758720868228,7.81,212.33,212.23,120.1]
[1758720868528,7.81,212.33,212.17,409.1366]
[1758720868925,4.2378,212.3,212.18,120.12]
[1758720869731,12.0472,212.33,212.18,186.0744]
[1758720869928,7.81,212.33,212.18,186.0744]
[1758720870124,7.81,212.38,212.21,65.9455]
[1758720870430,4.2366,212.35,212.26,4.2383]
[1758720870629,4.2366,212.35,212.27,120.04]
[1758720871226,4.2366,212.35,212.26,4.2383]
[1758720871432,4.2366,212.35,212.27,120.02]
[1758720871821,7.81,212.38,212.27,120.02]
[1758720872136,65.8783,212.43,212.27,120.02]
[1758720872333,65.8815,212.42,212.27,120.02]
[1758720872534,4.2353,212.42,212.29,4.2378]
[1758720872733,7.81,212.44,212.29,4.2378]
[1758720873030,65.8846,212.41,212.27,120.02]
[1758720873234,65.8846,212.41,212.28,120.04]
[1758720874034,4.2364,212.36,212.28,124.2779]
[1758720874232,7.81,212.38,212.22,65.9433]
[1758720874535,7.81,212.38,212.26,120.02]
[1758720874835,4.2364,212.37,212.26,120.02]
[1758720875429,65.8971,212.37,212.25,4.2384]
[1758720875633,7.81,212.36,212.26,75.1]
[1758720875830,7.81,212.36,212.17,423.57716338]
[1758720875831,7.81,212.36,212.25,75.1]
[1758720876227,65.9065,212.34,212.17,423.57716338]
[1758720876431,7.81,212.36,212.18,65.9553]
[1758720876739,7.81,212.36,212.18,185.9953]
[1758720877737,7.81,212.36,212.2,65.948]
[1758720877937,7.81,212.36,212.22,65.942]
[1758720879033,12.0466,212.36,212.26,4.2383]
[1758720879237,7.81,212.36,212.27,119.92]
[1758720879629,13.19593327,212.41,212.29,4.2378]
[1758720879937,7.81,212.41,212.27,119.92]
[1758720880132,4.2359,212.39,212.27,119.92]
[1758720880332,4.2359,212.39,212.28,119.86]
[1758720880540,7.81,212.41,212.28,119.86]
[1758720880838,4.2362,212.37,212.28,124.0978]
[1758720881040,4.2362,212.37,212.28,119.86]
[1758720881545,7.81,212.41,212.29,4.2377]
[1758720881731,7.81,212.41,212.3,119.82]
[1758720882036,7.81,212.41,212.29,124.0577]
[1758720882237,7.81,212.41,212.29,119.82]
[1758720882442,7.81,212.41,212.26,65.9303]
[1758720882637,7.81,212.41,212.3,119.8]
[1758720883041,4.2361,212.38,212.3,119.8]
[1758720883839,12.0456,212.41,212.3,119.8]
[1758720884038,7.81,212.41,212.3,119.8]
[1758720884541,4.2359,212.39,212.3,119.8]
[1758720885541,7.81,212.41,212.3,119.8]
[1758720885938,13.19593327,212.46,212.3,185.7174]
[1758720886544,79.06633327,212.46,212.3,119.8]
[1758720886744,65.8721,212.45,212.3,119.8]
[1758720887036,65.875,212.44,212.31,4.2373]
[1758720887243,7.81,212.43,212.3,119.8]
[1758720887841,4.2354,212.42,212.3,124.0374]
[1758720888037,7.81,212.43,212.3,124.0374]
[1758720888649,4.2359,212.39,212.3,124.0374]
[1758720888943,73.6891,212.43,212.3,124.0374]
[1758720889146,7.81,212.39,212.27,4.2381]
[1758720889336,7.81,212.39,212.28,90.38]
[1758720890140,4.2367,212.35,212.28,90.38]
[1758720891047,4.2367,212.35,212.28,94.6178]
[1758720891247,4.2361,212.38,212.28,90.38]
[1758720891838,4.2356,212.41,212.28,90.38]
[1758720892043,5.38593327,212.42,212.28,90.38]
[1758720892746,7.81,212.43,212.29,65.9208]
[1758720893645,128.6818,212.51,212.29,65.9208]
[1758720893646,7.74,212.49,212.32,65.9103]
[1758720893844,7.74,212.49,212.33,65.9089]
[1758720894246,7.74,212.49,212.31,3.90734318]
[1758720894247,7.74,212.43,212.31,3.90734318]
[1758720894446,7.74,212.43,212.29,99.04]
[1758720894846,7.74,212.43,212.29,102.94734318]
[1758720895145,4.2352,212.42,212.31,4.2373]
[1758720895549,11.9752,212.43,212.32,4.2371]
[1758720895744,7.74,212.43,212.32,4.2371]
[1758720895949,7.74,212.43,212.33,119.58]
[1758720896348,7.74,212.43,212.3,4.2375]
[1758720896652,7.74,212.43,212.34,119.58]
[1758720897246,65.882,212.42,212.28,4.2379]
[1758720897447,65.882,212.42,212.29,33.1]
[1758720897654,65.882,212.42,212.28,61.3979]
[1758720897655,7.74,212.4,212.28,61.3979]
[1758720898048,4.2367,212.35,212.28,57.16]
[1758720898456,4.2367,212.35,212.27,0.99013314]
[1758720898750,4.2367,212.35,212.27,91.17013314]
[1758720898955,4.2362,212.38,212.27,95.40813314]
[1758720899253,7.74,212.4,212.27,95.40813314]
[1758720899654,7.74,212.4,212.27,91.17013314]
[1758720899855,7.74,212.4,212.27,95.07747632]
[1758720900051,7.74,212.4,212.27,91.17013314]
[1758720900250,4.2361,212.38,212.28,4.2379]
[1758720900559,7.74,212.4,212.28,4.2379]
[1758720900757,7.74,212.4,212.27,95.07747632]
[1758720900954,12.67593327,212.45,212.29,69.82764318]
[1758720901259,12.67593327,212.45,212.3,3.90734318]
[1758720901260,7.29,212.45,212.3,3.90734318]
[1758720901459,7.29,212.45,212.32,65.9112]
[1758720901757,12.67593327,212.49,212.32,65.9112]
[1758720901960,4.2347,212.45,212.35,4.2365]
[1758720902148,73.1528,212.48,212.31,3.90734318]
[1758720902349,73.1528,212.48,212.32,28.18]
[1758720902554,7.29,212.48,212.32,28.18]
[1758720902752,7.29,212.53,212.38,65.8935]
[1758720902954,190.85183552,212.56,212.41,65.8831]
[1758720903150,195.08443552,212.56,212.42,125.02593327]
[1758720903356,190.85183552,212.56,212.43,119.66]
[1758720903660,4.2328,212.55,212.45,4.2344]
[1758720904054,190.85183552,212.56,212.43,119.66]
[1758720904255,190.85183552,212.56,212.4,3.90734318]
[1758720904456,7.29,212.58,212.44,119.6]
[1758720904657,7.29,212.58,212.4,3.90734318]
[1758720904854,7.29,212.58,212.45,119.6]
[1758720905256,4.2324,212.56,212.45,123.8344]
[1758720905457,4.2324,212.56,212.45,4.2344]
[1758720905657,4.2324,212.56,212.42,3.90734318]